Cogmind - Beta 12 @@@ ROGUE MODE // 2023.09.25 @ 20:55:27 Player: Kitarik02 Result: Destroyed by H-61 Shepherd with Heavy Assault Cannon Performance ------------- Evolutions (2) 1000 Regions Visited (4) 800 Robots Destroyed (109) 545 Value Destroyed (3728) 3728 Prototype IDs (8) 160 Alien Tech Used (0) 0 Bonus (303) 303 TOTAL SCORE: 6536 Bonus ------- High Alert Combat Kills 303 Cogmind --------- Core Integrity 0/550 Matter 215/300 Energy 250/250 System Corruption 8% Temperature Hot (247) Movement Walking (360) Ox3 Location -8/Materials Parts ------- > --- POWER (1) -------- Ion Engine > --- PROPULSION (3) --- VSS Leg > --- UTILITY (4) ------ Large Storage Unit Terrain Scanner Terrain Scan Processor > --- WEAPON (3) ------- Heavy Rocket Launcher Heavy Missile Launcher > --- INVENTORY (15) --- Light Nuclear Core Carbon-fiber Leg Pulse Rifle Pulse Rifle Pulse Rifle Pulse Rifle Ion Cannon Heavy Assault Rifle Minigun Enhanced Autogun Enhanced Autogun Grenade Launcher Heavy Rocket Launcher Remote Datajack Peak State ------------ > --- POWER ------------ Light Deuterium Engine > --- PROPULSION ------- Carbon-fiber Leg Carbon-fiber Leg VSS Leg > --- UTILITY ---------- Large Storage Unit Terrain Scanner Terrain Scan Processor Improved Light Armor Plating > --- WEAPON ----------- Enhanced Autogun Enhanced Autogun Assault Cannon > --- INVENTORY -------- Ion Engine Light Nuclear Core Carbon-fiber Leg Light EM Pulse Cannon Ion Cannon Heavy Assault Rifle Grenade Launcher Grenade Launcher Remote Datajack [Rating: 32] Favorites ----------- Power Ion Engine Engine Ion Engine Power Core Light Nuclear Core Propulsion Improved Treads Treads Improved Treads Leg Aluminum Leg Wheel Wheel Utility Medium Storage Unit Device Cooling System Storage Medium Storage Unit Processor Terrain Scan Processor Protection Medium Armor Plating Weapon EM Shotgun Energy Gun EM Shotgun Energy Cannon Particle Cannon Ballistic Gun Heavy Assault Rifle Ballistic Cannon Flak Cannon Launcher Grenade Launcher Special Weapon Remote Datajack Build | -11 -10 -9 -9 -8 ------- Run | Jun Mat Mat Min Mat Slots Evolved 4 | . . 2 . 2 Power . | . . . . . Propulsion 1 | . . 1 . . Utility 2 | . . 1 . 1 Weapon 1 | . . . . 1 Parts Attached 110 | 6 16 31 . 57 Power 8 | 1 1 1 . 5 Engine 7 | 1 1 1 . 4 Core 1 | . . . . 1 Reactor . | . . . . . Propulsion 24 | 2 5 8 . 9 Treads 9 | . . 4 . 5 Leg 13 | . 5 4 . 4 Wheel 2 | 2 . . . . Hover . | . . . . . Flight . | . . . . . Utility 20 | 1 4 5 . 10 Device 5 | . . 2 . 3 Storage 3 | 1 . 1 . 1 Processor 1 | . . . . 1 Hackware . | . . . . . Protection 11 | . 4 2 . 5 Artifact . | . . . . . Weapon 58 | 2 6 17 . 33 Energy Gun 11 | 1 4 3 . 3 Energy Cannon 8 | . . 2 . 6 Ballistic Gun 16 | 1 . 4 . 11 Ballistic Cannon 5 | . 1 1 . 3 Launcher 17 | . 1 7 . 9 Special Weapon 1 | . . . . 1 Impact Weapon . | . . . . . Slashing Weapon . | . . . . . Piercing Weapon . | . . . . . Special Melee Weapon . | . . . . . Unidentified Prototypes . | . . . . . Corrupted Parts 3 | . . 2 . 1 System Corruption 11 | . . 6 . 5 Parts Lost 26 | . 3 7 . 16 Power 4 | . . 1 . 3 Propulsion 8 | . 1 3 . 4 Utility 8 | . . 2 . 6 Weapon 6 | . 2 1 . 3 Highest Loss Streak 4 | . 2 4 . 4 To Critical Strikes . | . . . . . Average Slot Usage (%) 96 | . 98 96 100 95 Engine 9 | . 14 10 11 6 Core 1 | . . . . 2 Treads 16 | . . 23 33 19 Leg 11 | . 26 8 . 6 Device 9 | . . 11 22 11 Storage 10 | . 14 11 11 9 Processor 2 | . . . . 4 Protection 9 | . 13 8 . 8 Energy Gun 7 | . 21 5 . 1 Energy Cannon 1 | . . 4 . . Ballistic Gun 7 | . . 3 22 10 Ballistic Cannon 4 | . 2 2 . 6 Launcher 4 | . 2 4 . 5 Naked Turns . | . . . . . Heaviest Build 46 | 12 21 28 24 46 Greatest Support 69 | 26 26 69 69 69 Greatest Overweight (x) 3 | . 2 1 . 3 Average Overweight (x) . | . . . . . Largest Inventory Capacity 15 | 8 8 10 10 15 Average Capacity 10 | 6 8 9 10 12 Most Carried 14 | 6 8 10 10 14 Average Carried 8 | 3 7 8 10 9 Final Capacity 15 | 8 8 10 10 15 Final Carried 14 | 6 8 10 10 14 Class Distribution -------------------- 63% | Mutant 17% | Scavenger-Mutant 5% | Scavenger-Skirmisher 5% | Tank 4% | Skirmisher Dominant Class ---------------- Mutant | -10/Materials Mutant | -9/Materials Scavenger-Mutant | -9/Mines Mutant | -8/Materials Resources | -11 -10 -9 -9 -8 ----------- Run | Jun Mat Mat Min Mat Matter Collected 2838 | 118 298 740 31 1651 Remotely . | . . . . . Salvage Created 3393 | 25 597 1263 17 1491 Parts 212 | 4 43 83 2 80 Haulers Intercepted . | . . . . . Recyclers Shooed 3 | . 2 1 . . Parts Field Recycled . | . . . . . Retrieved Matter . | . . . . . Parts Self-Destructed . | . . . . . Prevented . | . . . . . Kills | -11 -10 -9 -9 -8 ------- Run | Jun Mat Mat Min Mat Combat Hostiles Destroyed 76 | . 14 29 . 33 Guns 36 | . 11 11 . 14 Cannons 23 | . . 8 . 15 AOE 16 | . 2 10 . 4 Classes Destroyed 14 | 1 5 4 . 4 Worker 9 | . 1 2 . 6 Builder 4 | . . 2 . 2 Tunneler 2 | 1 . . 1 . Recycler 2 | . . 1 . 1 Mechanic 1 | . . . . 1 Operator 3 | . 3 . . . Watcher 12 | . 3 4 . 5 Swarmer 5 | . 3 2 . . Grunt 48 | . 11 16 . 21 Brawler 1 | . . . . 1 Duelist 2 | . . 2 . . Sentry 15 | . . 9 . 6 Specialist 4 | . . . . 4 Hunter 1 | . . . . 1 Best Kill Streak 5 | 1 4 4 1 5 Combat Bots Only 4 | . 3 4 . 4 Max Kills in Single Turn 4 | 1 4 2 1 3 Gunslinging . | . . . . . Exploded 2 | . 2 2 . 2 Melee . | . . . . . Uniques/NPCs Destroyed . | . . . . . Combat | -11 -10 -9 -9 -8 -------- Run | Jun Mat Mat Min Mat Damage Taken 5954 | . 691 1916 . 3347 Core 899 | . 53 293 . 553 Absorbed by Shields . | . . . . . Redirected to Shielding 102 | . . . . 102 Regen/Repaired (Parts) 53 | . . . . 53 Core Remaining (%) 68 | 100 78 . 26 . Volleys Fired 265 | 1 34 108 3 119 Largest 3 | 2 2 2 2 3 Hottest 189 | 60 90 136 46 189 Shots Fired 549 | 2 66 194 6 281 Gun 310 | 2 66 84 6 152 Cannon 177 | . . 77 . 100 Launcher 59 | . . 33 . 26 Special 3 | . . . . 3 Kinetic 284 | 1 . 50 6 227 Thermal 60 | . . 40 . 20 Explosive 46 | . . 33 . 13 Electromagnetic 156 | 1 66 71 . 18 Robot Hit Streak 18 | 2 7 18 2 13 Robot Miss Streak 5 | . 4 5 3 5 Penetration Max . | . . . . . Secondary Targets 1 | . 1 . . . Max Gunslinging Chain 1 | . 1 . . . Shots Hit Robots 384 | 2 48 139 2 193 Core Hits 235 | 1 35 76 1 122 Critical Kills 1 | . . . . 1 Critical Parts Destroyed . | . . . . . Critical Strikes 6 | . 1 4 . 1 Destroy 1 | . . . . 1 Blast 4 | . . 4 . . Corrupt 1 | . 1 . . . Melee Attacks . | . . . . . Impact . | . . . . . Slashing . | . . . . . Piercing . | . . . . . Sneak Attacks . | . . . . . Combat Hostiles . | . . . . . Follow-up Attacks . | . . . . . Damage Inflicted 8730 | 25 1194 2837 35 4639 Guns 3635 | 25 662 995 35 1918 Cannons 2363 | . . 921 . 1442 Explosions 2687 | . 512 921 . 1254 Melee . | . . . . . Ramming 45 | . 20 . . 25 Kinetic 3681 | 13 . 563 35 3070 Thermal 1383 | . 512 619 . 252 Explosive 1679 | . . 771 . 908 Electromagnetic 1942 | 12 662 884 . 384 Impact . | . . . . . Slashing . | . . . . . Piercing . | . . . . . Highest Corruption 8 | . 1 6 6 8 Average Corruption 4 | . 1 5 6 6 Corruption Purged . | . . . . . Corruption Blocked . | . . . . . Effects 136 | . 11 48 14 63 Message Errors 34 | . 5 9 6 14 Matter Fused 33 | . 2 9 5 17 Heat Flow Errors 16 | . . 6 . 10 Energy Discharges 17 | . 2 7 2 6 Parts Fused 2 | . . 2 . . Data Loss (minor) 13 | . 1 7 . 5 Data Loss (major) 8 | . . 4 1 3 Misfires 4 | . 1 2 . 1 Alerts 4 | . . . . 4 Weapon Failures 5 | . . 2 . 3 Overload Shots . | . . . . . Overflow Damage 212 | . 184 10 . 18 Projectiles 14 | . . 10 . 4 Explosions 198 | . 184 . . 14 Melee . | . . . . . Knockbacks 38 | . . 7 . 31 Impact . | . . . . . Kinetic 35 | . . 6 . 29 Secondary 3 | . . 1 . 2 Self-Inflicted Damage 434 | . 174 154 . 106 Shots 14 | . 3 5 . 6 Rammed 6 | . . 2 . 4 Targets Rammed 11 | . 4 2 . 5 Kicked 4 | . 4 . . . Crushed 1 | . . . . 1 Highest Temperature 375 | . 249 375 . 325 Average Temperature 90 | . 71 96 . 95 Received Heat Transfer 2076 | . 180 762 . 1134 Effects 5 | . . . . 5 Energy Bleed 2 | . . . . 2 Interference 3 | . . . . 3 Siege Activations . | . . . . . Robots Corrupted 1 | . 1 . . . Combat Hostiles 1 | . 1 . . . Parts Fried 3 | . 1 2 . . Impact Corruptions . | . . . . . Robots Melted . | . . . . . Combat Hostiles . | . . . . . Parts Melted . | . . . . . Heat Transferred 1832 | . 300 1051 . 481 Parts Sabotaged . | . . . . . Parts Stolen . | . . . . . Parts Stripped . | . . . . . Power Chain Reactions 6 | . 1 3 . 2 Missiles Intercepted . | . . . . . Alert | -11 -10 -9 -9 -8 ------- Run | Jun Mat Mat Min Mat Peak Influence 829 | 5 350 829 327 641 Initial 322 | . 3 114 322 49 Average 269 | . 133 464 299 234 Maximum Alert Level 3 | . 1 3 1 2 Low Security (%) 46 | 100 78 10 12 53 Level 1 30 | . 21 35 87 25 Level 2 16 | . . 30 . 20 Level 3 5 | . . 23 . . Level 4 . | . . . . . Level 5 . | . . . . . High Security . | . . . . . Max Security . | . . . . . Squads Dispatched 15 | . 4 4 . 7 Investigation 4 | . 2 2 . . Extermination . | . . . . . Reinforcement 10 | . 2 2 . 6 Assault 1 | . . . . 1 Garrison . | . . . . . Intercept . | . . . . . Searches Triggered . | . . . . . Construction Impeded 1 | . . . . 1 Haulers Reinforced . | . . . . . Active Scanning Responses . | . . . . . Cargo Convoy Interrupts . | . . . . . Stealth | -11 -10 -9 -9 -8 --------- Run | Jun Mat Mat Min Mat Distress Signals 7 | . . 1 . 6 Communications Jammed . | . . . . . Distress Signals . | . . . . . Times Spotted 126 | . 28 44 . 54 Peak Tracking Total 5 | . 4 4 . 5 Tactical Retreats 9 | . 1 3 . 5 Traps | -11 -10 -9 -9 -8 ------- Run | Jun Mat Mat Min Mat Traps Triggered 7 | . 4 . . 3 Indirectly . | . . . . . Trap Hack Attempts . | . . . . . Triggered . | . . . . . Disarmed . | . . . . . Reprogrammed . | . . . . . Reused . | . . . . . Traps Extracted . | . . . . . Installed . | . . . . . Triggered . | . . . . . Machines | -11 -10 -9 -9 -8 ---------- Run | Jun Mat Mat Min Mat Machines Disabled 25 | . 13 5 . 7 Max in Single Turn 9 | . 9 1 . 1 Machines Repaired . | . . . . . Machines Sabotaged . | . . . . . Overloaded Fab Kills . | . . . . . Hacking | -11 -10 -9 -9 -8 --------- Run | Jun Mat Mat Min Mat Machines Accessed 26 | . 7 7 1 11 Terminals 19 | . 6 6 . 7 Fabricators . | . . . . . Repair Stations 2 | . . . . 2 Recycling Units 2 | . 1 . . 1 Scanalyzers 1 | . . 1 . . Garrison Access 1 | . . . . 1 Total Hacks 86 | . 32 20 1 33 Successful 46 | . 19 9 1 17 Failed 37 | . 13 11 . 13 Catastrophic 6 | . 2 1 . 3 Database Lockouts 3 | . . . . 3 Manual . | . . . . . Terminals 67 | . 27 18 . 22 Fabricators . | . . . . . Repair Stations 4 | . . . . 4 Recycling Units 9 | . 5 . . 4 Scanalyzers 2 | . . 2 . . Garrison Access 3 | . . . . 3 Terminal Hacks 34 | . 15 7 1 11 Record 15 | . 6 3 . 6 Prototype ID Bank 4 | . 2 1 . 1 Open Door 1 | . . . 1 . Emergency Access Points 1 | . . . . 1 Locate Traps 1 | . 1 . . . Dispatch Records 1 | . 1 . . . Maintenance Status 1 | . 1 . . . Recall Investigation 2 | . . 1 . 1 Hauler Manifests 1 | . 1 . . . Registered Components 1 | . 1 . . . Zone Layout 6 | . 2 2 . 2 Fabricator Hacks . | . . . . . Repair Station Hacks 2 | . . . . 2 Scan Component 1 | . . . . 1 Repair 1 | . . . . 1 Recycling Unit Hacks 7 | . 4 . . 3 Recycle Component 1 | . . . . 1 Process 3 | . 2 . . 1 Report Inventory 1 | . 1 . . . Retrieve Matter 1 | . . . . 1 Retrieve Components 1 | . 1 . . . Scanalyzer 2 | . . 2 . . Insert Component 1 | . . 1 . . Analyze 1 | . . 1 . . Garrison Access Hacks 1 | . . . . 1 Coupler Status 1 | . . . . 1 Unauthorized Hacks . | . . . . . Terminals . | . . . . . Fabricators . | . . . . . Repair Stations . | . . . . . Recycling Units . | . . . . . Scanalyzers . | . . . . . Garrison Access . | . . . . . Data Cores Recovered 1 | . 1 . . . Used . | . . . . . Hacking Detections 22 | . 7 6 . 9 Full Trace Events 5 | . 3 2 . . Feedback Events . | . . . . . Feedback Blocked . | . . . . . Robot Schematics Acquired . | . . . . . Robots Built . | . . . . . Authchips . | . . . . . Time . | . . . . . Total Robot Build Rating . | . . . . . Part Schematics Acquired 1 | . . 1 . . Parts Built . | . . . . . Authchips . | . . . . . Time . | . . . . . Total Part Build Rating . | . . . . . Parts Repaired 1 | . . . . 1 Time 26 | . . . . 26 Parts Recycled 1 | . . . . 1 Recycled Matter 319 | . . . . 319 Retrieved Matter 566 | . . . . 566 Retrieved Components 9 | . 9 . . . Parts Scanalyzed 1 | . . 1 . . Part Schematics Acquired 1 | . . 1 . . Parts Damaged . | . . . . . Bothacking | -11 -10 -9 -9 -8 ------------ Run | Jun Mat Mat Min Mat Used RIF Installer . | . . . . . Robots Hacked 1 | . . . . 1 Non-combat 1 | . . . . 1 Combat . | . . . . . Robot Hacks Applied 1 | . . . . 1 no_distress 1 | . . . . 1 Relay Couplers Released . | . . . . . Fabnet Peak Effective % . | . . . . . Robots Rewired . | . . . . . Allies Hacked . | . . . . . Hacks Repelled . | . . . . . Allies | -11 -10 -9 -9 -8 -------- Run | Jun Mat Mat Min Mat Total Allies . | . . . . . Largest Group . | . . . . . Highest-Rated Group . | . . . . . Highest-Rated Ally . | . . . . . Total Orders . | . . . . . Ally Attacks . | . . . . . Total Damage . | . . . . . Kills . | . . . . . Allies Corrupted . | . . . . . Allies Melted . | . . . . . Intel | -11 -10 -9 -9 -8 ------- Run | Jun Mat Mat Min Mat Robot Analysis Total . | . . . . . Derelict Logs Recovered 1 | . . . 1 . Drone Launches . | . . . . . Drone Recoveries . | . . . . . Exploration | -11 -10 -9 -9 -8 ------------- Run | Jun Mat Mat Min Mat Turns Passed 7714 | 63 1800 1886 455 3510 Spaces Moved 3993 | 51 893 946 257 1846 Core 9 | 9 . . . . Treads 2154 | . . 707 257 1190 Legs 1738 | . 843 239 . 656 Wheels 92 | 42 50 . . . Hover . | . . . . . Flight . | . . . . . Fastest Speed 50 | 50 90 120 160 110 Average Speed 155 | 82 174 151 160 150 Slowest Speed 360 | 90 260 190 160 360 Overloaded Moves . | . . . . . Propulsion Burnouts . | . . . . . Robots Hopped . | . . . . . Cave-ins Triggered . | . . . . . Exploration Rate (%) 64 | 4 98 78 58 84 Regions Visited 4 Branch Regions 1 Pre-discovered Areas . | . . . . . Known Exits Taken . | . . . . . Unknown Exits Taken 4 | 1 1 1 1 . Scrap Searched 1 | . . . 1 . Spaces Dug . | . . . . . Terrain Destroyed 374 | . 55 195 . 124 Melee . | . . . . . Projectile 11 | . . 1 . 10 AOE 363 | . 55 194 . 114 Terrain Rammed . | . . . . . Walls Destroyed . | . . . . . Machines Disabled . | . . . . . Actions | -11 -10 -9 -9 -8 --------- Run | Jun Mat Mat Min Mat Total 4980 | 69 1070 1202 295 2344 Wait 484 | . 102 78 36 268 Move 3989 | 50 892 945 256 1846 Hop . | . . . . . Pick Up 80 | 12 11 25 . 32 Fast Attach 6 | . 1 1 . 4 Attach 42 | 6 5 11 . 20 Detach . | . . . . . Swap 62 | . 10 19 . 33 Drop 41 | . 11 13 . 17 Fire 265 | 1 34 108 3 119 Melee . | . . . . . Ram . | . . . . . Kick 4 | . 4 . . . Crush 7 | . . 2 . 5 Escape Stasis . | . . . . . Rewire . | . . . . . Trap . | . . . . . Miscellaneous . | . . . . . Route ------- -11/Junkyard -10/Materials (discovered 5 exits: *Mat x3 / [*Min x2]) -9/Materials (discovered 4 exits: *Mat x3 / *Min) -9/Mines -8/Materials (discovered 2 exits: [*Fac x2]) History --------- Turn | Location | Event 24 | -11/Junkyard | Discovered new exit (range 14) 64 | -11/Junkyard | Entered Materials 186 | -10/Materials | Discovered new exit (range 8) 276 | -10/Materials | Discovered new exit (range 5) 314 | -10/Materials | Build established: Mutant 515 | -10/Materials | Discovered new exit (range 8) 883 | -10/Materials | Discovered new exit (range 16) 999 | -10/Materials | Discovered new exit (range 5) 1864 | -10/Materials | Entered another Materials area 1864 | -9/Materials | Evolved 2 slots: Propulsion x1, Utility x1 2127 | -9/Materials | Discovered new exit (range 9) 2240 | -9/Materials | Lost 4 parts (2n2u) 3027 | -9/Materials | Core integrity fell below 50% 3177 | -9/Materials | Discovered new exit (range 5) 3541 | -9/Materials | Discovered new exit (range 15) 3659 | -9/Materials | Discovered new exit (range 10) 3750 | -9/Materials | Entered Mines 3813 | -9/Mines | Build established: Scavenger-Mutant 3814 | -9/Mines | Found a hidden stash of uninstalled traps 3864 | -9/Mines | Learned Materials terminal intel 4050 | -9/Mines | Found the Drone Emporium 4140 | -9/Mines | Discovered new exit (range 9) 4205 | -9/Mines | Entered Materials 4205 | -8/Materials | Evolved 2 slots: Utility x1, Weapon x1 4206 | -8/Materials | Loaded intel: 12 terminal locations 4242 | -8/Materials | Central database locked down 4242 | -8/Materials | Central database locked down 4898 | -8/Materials | Build established: Mutant 4900 | -8/Materials | Discovered new exit (range 5) 5152 | -8/Materials | Repaired Ion Engine 5582 | -8/Materials | Lost 3 parts (1p2u) 5973 | -8/Materials | Discovered new exit (range 15) 6714 | -8/Materials | Lost 4 parts (1p2n1u) 6976 | -8/Materials | Core integrity fell below 50% 7363 | -8/Materials | Central database locked down 7405 | -8/Materials | First assault squad dispatched 7708 | -8/Materials | Core integrity fell below 20% 7715 | -8/Materials | Destroyed by H-61 Shepherd with Heavy Assault Cannon Last Messages --------------- 07664_ System corrupted: FCS attempts to trigger Hvy. Missile Launcher. 07664_ System corrupted: Hvy. Missile Launcher misfires. 07664_ Destroyed Wheel. 07664_ K-01 Serf destroyed. 07689_ I7AAHS|,,8GBLB